bitfinex/quotes_SOLUSD_20250607
["timestamp","ask_amount","ask_price","bid_price","bid_amount"]
[1749321797511,8.06303808,150.83,150.79,25.03476086]
[1749321800117,8.06303808,150.83,150.79,16.97172278]
[1749321802633,8.06303808,150.83,150.79,105.67172278]
[1749321803945,8.06303808,150.83,150.79,99.04]
[1749321804631,8.06303808,150.82,150.79,99.04]
[1749321805739,8.06303808,150.82,150.8,2.46883891]
[1749321805941,8.06303808,150.82,150.79,99.04]
[1749321806325,8.06303808,150.82,150.8,2.46883996]
[1749321806534,8.06303808,150.82,150.79,99.04]
[1749321806737,8.06303808,150.82,150.8,2.4688404]
[1749321807039,8.06303808,150.82,150.79,99.04]
[1749321807646,8.06303808,150.82,150.8,2.4687571]
[1749321807951,8.06303808,150.82,150.79,99.04]
[1749321808522,8.06303808,150.82,150.8,2.46917831]
[1749321808723,8.06303808,150.82,150.79,10.34]
[1749321808970,14.69348821,150.82,150.79,10.34]
[1749321810926,8.06303808,150.82,150.79,10.34]
[1749321811333,14.69346262,150.82,150.79,10.34]
[1749321813322,5.16192334,150.82,150.79,10.34]
[1749321815046,11.79238139,150.82,150.79,10.34]
[1749321815253,5.16192334,150.81,150.79,10.34]
[1749321815950,5.16192334,150.8,150.78,88.7]
[1749321816262,6.63045805,150.82,150.75,99.04]
[1749321816263,5.16192334,150.79,150.75,99.04]
[1749321816430,5.16192334,150.78,150.76,2.47135564]
[1749321816625,5.16192334,150.77,150.75,10.34]
[1749321816852,1.5833,150.81,150.75,10.34]
[1749321816853,5.16192334,150.76,150.75,10.34]
[1749321817154,8.07200027,150.76,150.75,10.34]
[1749321818626,8.07200027,150.76,150.71,95.49509035]
[1749321818830,8.07200027,150.75,150.72,2.46970502]
[1749321819049,8.07200027,150.75,150.71,95.49509035]
[1749321819252,8.07200027,150.75,150.72,2.46970642]
[1749321819557,8.07200027,150.75,150.71,103.56709062]
[1749321819932,8.07200027,150.75,150.72,2.46924873]
[1749321820153,8.07200027,150.75,150.71,63.26709062]
[1749321820343,8.07200027,150.75,150.72,2.46913753]
[1749321820644,8.07200027,150.75,150.71,63.26709062]
[1749321820840,8.07200027,150.75,150.72,9.1038004]
[1749321821041,8.07200027,150.75,150.72,6.63473744]
[1749321821754,8.07200027,150.75,150.71,63.26713355]
[1749321821968,8.07200027,150.75,150.71,55.19513328]
[1749321824157,8.07200027,150.75,150.71,63.26713355]
[1749321826055,8.07200027,150.77,150.72,8.07200027]
[1749321826258,8.07200027,150.77,150.73,8.07200027]
[1749321826963,8.07200027,150.75,150.71,44.85513328]
[1749321827152,8.07200027,150.75,150.73,10.34]
[1749321828761,8.07200027,150.75,150.73,16.97433864]
[1749321830069,8.07200027,150.76,150.73,16.97433864]
[1749321835886,8.07200027,150.76,150.73,10.34]
[1749321836977,8.07200027,150.75,150.73,10.34]
[1749321841182,14.70552368,150.75,150.73,10.34]
[1749321845599,8.07200027,150.74,150.69,10.34]
[1749321845886,8.07200027,150.71,150.69,10.34]
[1749321846083,8.07200027,150.7,150.65,48.58]
[1749321846385,8.07200027,150.69,150.66,2.46588317]
[1749321846576,8.07200027,150.68,150.65,137.28]
[1749321846889,8.07200027,150.68,150.66,2.46622289]
[1749321847074,8.07200027,150.68,150.65,143.91771612]
[1749321847392,8.07200027,150.68,150.66,2.46630079]
[1749321847567,8.07200027,150.68,150.65,143.91771612]
[1749321847759,8.07200027,150.68,150.66,2.46630024]
[1749321847964,8.07200027,150.68,150.65,143.91771612]
[1749321848172,8.07200027,150.68,150.66,2.46803935]
[1749321848360,8.07200027,150.68,150.65,143.91771612]
[1749321848566,8.07200027,150.68,150.66,9.10529369]
[1749321848875,6.63480207,150.73,150.66,6.6372161]
[1749321849081,8.07200027,150.7,150.66,14.70921637]
[1749321851462,8.07200027,150.7,150.66,6.6372161]
[1749321859004,8.07200027,150.7,150.67,2.47152409]
[1749321859215,8.07200027,150.7,150.66,6.6372161]
[1749321859409,8.07200027,150.7,150.67,2.47119904]
[1749321859582,8.07200027,150.7,150.66,6.6372161]
[1749321859981,8.07200027,150.7,150.67,2.47135447]
[1749321860207,8.07200027,150.7,150.66,6.6372161]
[1749321860394,8.07200027,150.7,150.67,2.47133122]
[1749321860593,8.07200027,150.7,150.66,6.6372161]
[1749321860902,8.07200027,150.7,150.68,6.63658083]
[1749321862196,8.07200027,150.7,150.67,6.6370213]
[1749321863316,5.16989717,150.7,150.66,6.63746183]
[1749321863616,5.16989717,150.7,150.67,2.47125448]
[1749321863825,5.16989717,150.7,150.66,6.63746183]
[1749321864105,5.16989717,150.7,150.67,2.47121015]
[1749321864296,5.16989717,150.7,150.66,6.63746183]
[1749321864497,5.16989717,150.7,150.68,6.63658083]
[1749321865711,5.16989717,150.7,150.66,28.40101358]
[1749321865909,5.16989717,150.71,150.67,2.47108855]
[1749321866210,5.16989717,150.71,150.66,28.40101358]
[1749321866410,5.16989717,150.73,150.69,5.16989717]
[1749321866909,5.16989717,150.72,150.68,5.16989717]
[1749321867215,8.07566095,150.72,150.69,2.47039989]
[1749321867506,8.07566095,150.72,150.68,8.07566095]
[1749321867715,8.07566095,150.72,150.69,9.10646645]
[1749321867930,8.07566095,150.72,150.69,6.63614042]
[1749321868303,26.0,150.74,150.69,6.63614042]
[1749321868501,8.07566095,150.72,150.69,6.63614042]
[1749321869499,8.07566095,150.73,150.69,6.63614042]
[1749321869789,8.07566095,150.73,150.69,16.97614042]
[1749321870603,8.07566095,150.73,150.69,105.67614042]
[1749321871005,26.0,150.74,150.69,113.75180137]
[1749321871197,8.07566095,150.73,150.69,113.75180137]
[1749321872904,8.07566095,150.74,150.7,8.07566095]
[1749321874213,8.07566095,150.73,150.69,113.75180137]
[1749321874417,8.07566095,150.73,150.7,2.47282376]
[1749321874720,8.07566095,150.73,150.69,113.75180137]
[1749321874919,8.07566095,150.73,150.7,9.1082774]
[1749321875119,8.07566095,150.73,150.7,6.63532271]
[1749321880000,8.07566095,150.73,150.69,113.75171683]
[1749321880197,8.07566095,150.73,150.69,105.67605588]
[1749321880618,8.07566095,150.73,150.7,2.47498859]
[1749321880921,8.07566095,150.73,150.69,105.67605588]
[1749321882426,8.07566095,150.73,150.7,2.47552241]
[1749321882625,8.07566095,150.73,150.69,105.67605588]
[1749321882814,8.07566095,150.73,150.7,2.47573745]
[1749321883006,8.07566095,150.73,150.69,105.67605588]
[1749321883627,8.07566095,150.73,150.7,2.47593015]
[1749321883824,8.07566095,150.73,150.69,105.67605588]
[1749321884131,8.07566095,150.73,150.69,113.75171683]
[1749321884335,8.07566095,150.73,150.7,2.47646486]
[1749321884521,8.07566095,150.73,150.71,2.47618402]
[1749321884716,8.07566095,150.73,150.69,113.75171683]
[1749321885024,8.07566095,150.75,150.7,8.07566095]
[1749321885319,8.07566095,150.74,150.71,2.47598029]
[1749321885526,8.07566095,150.75,150.7,14.71116074]
[1749321885729,8.07566095,150.75,150.71,2.47681929]
[1749321885899,8.07566095,150.75,150.7,14.71116074]
[1749321886103,8.07566095,150.75,150.71,2.47678159]
[1749321886328,8.07566095,150.75,150.7,14.71116074]
[1749321886510,8.07566095,150.75,150.71,9.11169915]
[1749321886708,8.07566095,150.75,150.72,2.47651545]
[1749321886925,8.07566095,150.75,150.71,6.63515272]
[1749321887502,8.07566095,150.74,150.72,2.47655639]
[1749321887703,8.07566095,150.74,150.71,6.63515272]
[1749321887922,8.07566095,150.74,150.72,2.47653442]
[1749321888130,8.07566095,150.74,150.71,6.63515272]
[1749321888321,8.07566095,150.74,150.72,2.47653425]
[1749321888623,8.07566095,150.74,150.71,6.63515272]
[1749321889205,5.16692476,150.74,150.72,2.47768726]
[1749321889400,5.16692476,150.74,150.71,6.63515272]
[1749321889604,5.16692476,150.74,150.72,2.47768709]
[1749321889803,5.16692476,150.74,150.71,6.63515272]
[1749321890127,5.16692476,150.74,150.72,2.47731742]
[1749321890304,5.16692476,150.74,150.7,95.3355934]
[1749321890706,5.16692476,150.74,150.71,2.4773177]
[1749321891015,5.16692476,150.74,150.72,2.4773177]
[1749321891214,5.16692476,150.74,150.7,95.3355934]
[1749321891552,5.16692476,150.74,150.71,2.47712877]
[1749321891709,5.16692476,150.74,150.72,2.47712877]
[1749321891908,5.16692476,150.74,150.7,100.50251816]
[1749321892127,5.16692476,150.74,150.7,95.3355934]
[1749321892315,5.16692476,150.74,150.7,100.50251816]
[1749321892521,5.16692476,150.74,150.71,2.47718483]
[1749321892721,5.16692476,150.74,150.72,2.47718466]
[1749321892923,5.16692476,150.74,150.7,100.50251816]
[1749321893227,5.16692476,150.73,150.71,2.47696903]
[1749321893430,5.16692476,150.73,150.7,88.7]
[1749321893731,5.16692476,150.72,150.7,88.7]
[1749321894317,5.16692476,150.72,150.69,99.04]
[1749321894509,5.16692476,150.72,150.7,2.4779129]
[1749321894705,5.16692476,150.72,150.69,99.04]
[1749321894908,5.16692476,150.72,150.7,2.47791335]
[1749321895221,5.16692476,150.72,150.69,99.04]
[1749321895534,5.16692476,150.71,150.69,99.04]
[1749321897517,5.16692476,150.7,150.69,10.34]
[1749321897719,23.81657362,150.7,150.64,88.7]
[1749321897923,5.16692476,150.66,150.65,2.47992913]
[1749321898118,5.16692476,150.66,150.65,2.47993065]
[1749321898439,5.16692476,150.66,150.65,2.47993259]
[1749321898818,5.16692476,150.66,150.65,2.48019196]
[1749321899217,5.16692476,150.66,150.63,10.34]
[1749321899416,5.16692476,150.66,150.64,2.48089367]
[1749321899611,5.16692476,150.66,150.65,2.48089294]
[1749321899826,11.80444978,150.66,150.65,2.48089221]
[1749321900026,11.80444978,150.66,150.63,10.34]
[1749321900232,5.16692476,150.65,150.63,10.34]
[1749321901152,5.16692476,150.64,150.57,10.34]
[1749321901356,5.16692476,150.64,150.58,2.47842101]
[1749321901357,8.08835138,150.6,150.58,2.47842101]
[1749321901639,8.08835138,150.6,150.59,2.47842101]
[1749321902022,8.08835138,150.6,150.57,10.34]
[1749321902217,8.08835138,150.58,150.57,10.34]
[1749321903221,14.72935197,150.58,150.55,0.4001583]
[1749321903419,16.17670276,150.56,150.55,0.4001583]
[1749321904030,34.82635162,150.56,150.55,0.4001583]
[1749321904631,16.17670276,150.56,150.55,0.4001583]
[1749321904817,27.5335,150.59,150.55,0.4001583]
[1749321905032,8.08835138,150.56,150.55,0.4001583]
[1749321905632,16.17670276,150.56,150.55,0.4001583]
[1749321905830,81.78822197,150.56,150.55,0.4001583]
[1749321906024,26.0,150.53,150.46,16.4972]
[1749321906227,8.08835138,150.48,150.46,16.4972]
[1749321906750,8.08835138,150.49,150.46,23.14341304]
[1749321907230,8.08835138,150.5,150.46,23.14341304]
[1749321908126,8.08835138,150.49,150.46,23.14341304]
[1749321908326,8.08835138,150.47,150.46,10.34]
[1749321908531,8.08835138,150.47,150.43,10.34]
[1749321908747,8.08835138,150.44,150.43,10.34]
[1749321909050,11.37280666,150.44,150.39,10.34]
[1749321909226,8.08835138,150.41,150.39,10.34]
[1749321910549,8.08835138,150.4,150.34,10.36]
[1749321910728,8.08835138,150.38,150.34,10.36]
[1749321911226,8.08835138,150.37,150.34,10.36]
[1749321911631,32.64761731,150.43,150.35,6.65114732]
[1749321911828,26.0,150.43,150.37,8.08835138]
[1749321912035,8.08835138,150.43,150.38,8.08835138]
[1749321912229,26.0,150.45,150.4,8.08835138]
[1749321912438,8.08835138,150.44,150.4,8.08835138]
[1749321913027,6.64582886,150.48,150.4,8.08835138]
[1749321913228,8.08835138,150.44,150.4,8.08835138]
[1749321913545,8.08835138,150.46,150.41,8.08835138]
[1749321913747,8.08835138,150.46,150.41,14.73655009]
[1749321914070,8.08835138,150.46,150.42,8.08835138]
[1749321914434,8.08835138,150.47,150.43,8.08835138]
[1749321914752,8.08835138,150.47,150.41,6.64819871]
[1749321914753,8.08835138,150.48,150.44,8.08835138]
[1749321914942,8.08835138,150.49,150.44,8.08835138]
[1749321915345,8.08835138,150.48,150.41,23.269434]
[1749321915540,8.08835138,150.47,150.43,8.08835138]
[1749321915852,8.08835138,150.48,150.44,14.73551968]
[1749321916038,8.08835138,150.48,150.41,6.64849411]
[1749321916346,8.08835138,150.42,150.39,23.09484373]
[1749321916738,8.08835138,150.41,150.39,10.36]
[1749321917139,8.08835138,150.42,150.39,10.36]
[1749321917544,8.08835138,150.42,150.39,17.00933903]
[1749321918861,8.08835138,150.43,150.39,10.36]
[1749321919273,13.51297442,150.43,150.39,10.36]
[1749321920451,6.64724254,150.44,150.39,23.87297442]
[1749321920753,13.51297442,150.44,150.4,13.51297442]
[1749321921139,13.51297442,150.43,150.39,23.87297442]
[1749321921339,13.51297442,150.42,150.39,10.36]
[1749321922650,13.51297442,150.41,150.39,10.36]
[1749321923461,13.51297442,150.42,150.39,10.36]
[1749321925947,13.51297442,150.43,150.39,17.00928451]
[1749321927038,13.51297442,150.44,150.39,30.52225893]
[1749321928258,13.51297442,150.43,150.39,30.52225893]
[1749321928466,13.51297442,150.43,150.39,17.00928451]
[1749321929678,13.51297442,150.43,150.39,10.36]
[1749321931471,26.0,150.46,150.39,10.36]
[1749321931472,13.51297442,150.42,150.39,10.36]
[1749321932159,13.51297442,150.41,150.39,10.36]
[1749321932355,25.29637534,150.45,150.39,10.36]
[1749321932667,13.51297442,150.43,150.39,10.36]
[1749321932865,26.0,150.46,150.42,13.51297442]
[1749321933178,39.51297442,150.46,150.42,13.51297442]
[1749321933383,39.51297442,150.46,150.42,20.16092486]
[1749321933552,9.92615917,150.48,150.42,20.16092486]
[1749321933757,13.51297442,150.47,150.42,20.16092486]
[1749321936165,13.51297442,150.46,150.42,20.16092486]
[1749321936605,13.51297442,150.46,150.41,20.16138694]
[1749321937180,13.51297442,150.45,150.41,20.16138694]
[1749321938666,13.51297442,150.46,150.42,13.51297442]
[1749321939063,13.51297442,150.46,150.41,108.86138694]
[1749321939676,13.51297442,150.46,150.42,20.1608933]
[1749321939872,13.51297442,150.46,150.42,13.51297442]
[1749321940068,20.15931735,150.46,150.41,108.86130421]
[1749321940269,13.51297442,150.46,150.41,108.86130421]
[1749321940684,1.6424,150.51,150.43,13.51297442]
[1749321940900,46.15749269,150.5,150.45,13.51297442]
[1749321941203,40.74462553,150.5,150.46,8.10010726]
[1749321941568,44.0051148,150.5,150.46,8.10010726]
[1749321942184,35.90500754,150.5,150.46,8.10010726]
[1749321942689,8.10010726,150.49,150.44,10.44]
[1749321942896,8.10010726,150.47,150.44,10.44]
[1749321943072,8.10010726,150.48,150.44,10.44]
[1749321945090,14.74555541,150.48,150.44,10.44]
[1749321949407,14.74555541,150.48,150.4,90.2302]
[1749321949408,8.10010726,150.45,150.37,12.54899735]
[1749321949573,8.10010726,150.42,150.37,16.7949]
[1749321949774,8.10010726,150.42,150.37,24.89500726]
[1749321950001,8.10010726,150.42,150.38,2.47642522]
[1749321950292,8.10010726,150.42,150.38,8.10010726]
[1749321950474,8.10010726,150.42,150.39,2.48120682]
[1749321950675,8.10010726,150.42,150.4,2.4812331]
[1749321950876,8.10010726,150.42,150.38,14.74983726]
[1749321951083,8.10010726,150.42,150.39,2.4812895]
[1749321951413,8.10010726,150.43,150.4,2.48117674]
[1749321951591,8.10010726,150.43,150.39,8.10010726]
[1749321951897,8.10010726,150.43,150.4,2.48117625]
[1749321952095,8.10010726,150.45,150.4,8.10010726]
[1749321952278,34.10010726,150.46,150.41,10.58134671]
[1749321952484,40.746552,150.46,150.42,2.48123945]
[1749321952683,40.746552,150.46,150.41,14.74842582]
[1749321953193,14.746552,150.46,150.41,14.74842582]
[1749321953375,8.10010726,150.45,150.41,14.74842582]
[1749321953771,8.10010726,150.45,150.42,2.48353829]
[1749321953976,8.10010726,150.45,150.41,14.74842582]
[1749321954698,8.10010726,150.46,150.42,9.13147179]
[1749321955004,8.10010726,150.46,150.42,6.6479194]
[1749321956679,40.74553969,150.48,150.43,10.58455955]
[1749321956990,40.74553969,150.48,150.43,8.10010726]
[1749321957378,14.74553969,150.48,150.43,8.10010726]
[1749321957579,8.10010726,150.48,150.44,10.58445651]
[1749321957881,14.74560687,150.48,150.43,8.10010726]
[1749321958198,6.64549961,150.48,150.44,2.48401677]
[1749321958375,8.10010726,150.47,150.42,14.74802666]
[1749321958574,8.10010726,150.43,150.4,99.14]
[1749321959098,8.10010726,150.43,150.41,2.48453965]
[1749321959302,8.10010726,150.43,150.4,99.14]
[1749321959689,8.10010726,150.43,150.41,2.48539084]
[1749321959880,8.10010726,150.43,150.4,99.14]
[1749321960082,8.10010726,150.43,150.41,2.48527746]
[1749321960286,14.7473889,150.44,150.4,107.24010726]
[1749321961085,8.10010726,150.44,150.4,113.88899301]
[1749321962299,8.10010726,150.44,150.41,2.48554536]
[1749321962497,8.10010726,150.44,150.4,25.18899301]
[1749321962698,14.74729723,150.44,150.4,18.54010726]
[1749321963917,8.10010726,150.44,150.4,18.54010726]
[1749321964118,14.74728194,150.44,150.4,18.54010726]
[1749321964419,8.10010726,150.44,150.4,25.18901377]
[1749321965584,32.6460204,150.47,150.43,8.10010726]
[1749321965797,26.0,150.47,150.43,8.10010726]
[1749321966019,13.70048927,150.5,150.44,8.10010726]
[1749321966216,34.10010726,150.49,150.44,8.10010726]
[1749321966410,3.26048927,150.5,150.46,8.10010726]
[1749321966715,42.38666099,150.51,150.46,8.10010726]
[1749321966903,8.10010726,150.48,150.44,8.10010726]
[1749321967516,8.10010726,150.49,150.44,8.10010726]
[1749321967693,14.74466148,150.5,150.45,8.10010726]
[1749321968488,18.08198043,150.5,150.45,8.10010726]
[1749321968897,8.10010726,150.49,150.45,14.74676172]
[1749321969509,11.43742621,150.5,150.46,8.10010726]
[1749321970217,11.43742621,150.5,150.45,14.74676172]
[1749321970393,3.33731895,150.5,150.46,10.5846932]
[1749321970596,40.74435599,150.51,150.46,8.10010726]
[1749321970597,34.10010726,150.51,150.46,8.10010726]
[1749321970923,34.10010726,150.51,150.47,14.74576291]
[1749321971120,8.10010726,150.5,150.45,10.44]
[1749321971414,8.10010726,150.49,150.45,10.44]
[1749321971993,8.10010726,150.49,150.45,18.54010726]
[1749321972192,8.10010726,150.5,150.45,17.08666758]
[1749321972420,8.10010726,150.5,150.46,8.10010726]
[1749321972706,8.10010726,150.5,150.45,25.18677484]
[1749321973313,8.10010726,150.5,150.45,17.08666758]
[1749321973516,37.39198551,150.51,150.47,8.10010726]
[1749321973733,29.29187825,150.51,150.48,8.10010726]
[1749321974226,37.39198551,150.51,150.47,8.10010726]
[1749321975016,37.39198551,150.51,150.47,14.74552621]
[1749321976828,3.29187825,150.51,150.47,14.74552621]
[1749321977137,40.74335371,150.53,150.48,14.74533846]
[1749321977301,8.10010726,150.52,150.48,14.74533846]
[1749321977500,11.43786766,150.52,150.48,14.74533846]
[1749321978447,14.7437505,150.52,150.48,8.10010726]
[1749321978618,14.7437505,150.52,150.47,14.74578222]
[1749321980833,8.10010726,150.52,150.47,14.74578222]
[1749321981530,8.10010726,150.52,150.48,8.10010726]
[1749321981907,11.41603519,150.52,150.48,8.10010726]
[1749321982221,14.74381353,150.52,150.48,8.10010726]
[1749321983842,8.10010726,150.52,150.48,14.74548395]
[1749321984018,26.0,150.53,150.48,14.74548395]
[1749321984346,34.10010726,150.53,150.49,8.10010726]
[1749321985341,40.74343067,150.53,150.49,8.10010726]
[1749321986321,40.74343067,150.53,150.49,14.74505879]
[1749321986709,44.06744952,150.53,150.49,14.74505879]
[1749321987810,44.06744952,150.53,150.49,8.10010726]
[1749321988131,3.32401885,150.53,150.49,14.74505067]
[1749321988335,47.21408349,150.55,150.51,8.10010726]
[1749321988940,47.21408349,150.55,150.5,8.10010726]
[1749321989311,53.85652105,150.55,150.5,8.10010726]
[1749321989727,8.10010726,150.54,150.5,8.10010726]
[1749321989926,18.02181229,150.54,150.5,8.10010726]
[1749321990330,8.10010726,150.53,150.49,8.10010726]
[1749321991822,14.74358997,150.53,150.49,8.10010726]
[1749321993524,6.64348271,150.53,150.49,8.10010726]
[1749321993919,13.11397623,150.55,150.51,8.10010726]
[1749321994209,7.19184177,150.57,150.53,8.10010726]
[1749321994210,14.74153649,150.57,150.53,8.10010726]
[1749321994410,8.10010726,150.56,150.52,8.10010726]
[1749321995447,14.74223952,150.56,150.52,8.10010726]
[1749321995611,8.10010726,150.57,150.53,8.10010726]
[1749321995821,11.36906395,150.57,150.53,8.10010726]
[1749321996019,8.10010726,150.56,150.52,8.10010726]
[1749321996715,14.74233821,150.56,150.52,8.10010726]
[1749321997934,14.74233821,150.56,150.5,105.78437488]
[1749321998149,14.74233821,150.56,150.52,8.10010726]
[1749321999362,8.10010726,150.55,150.5,107.24010726]
[1749321999657,6.64223095,150.56,150.51,8.10010726]
[1749321999821,6.64223095,150.56,150.52,8.10010726]
[1749322000457,40.74154823,150.57,150.52,8.10010726]
[1749322000660,44.11508819,150.57,150.52,8.10010726]
[1749322001234,8.10010726,150.56,150.52,8.10010726]
[1749322001658,8.10010726,150.56,150.52,14.74372997]
[1749322003858,37.47364722,150.57,150.52,14.74372997]
[1749322004045,3.37353996,150.57,150.54,8.10010726]
[1749322004245,26.0,150.59,150.55,8.10010726]
[1749322004464,34.10010726,150.61,150.56,8.10010726]
[1749322005759,40.73977911,150.61,150.56,14.74181057]
[1749322007847,44.14233832,150.61,150.56,14.74181057]
[1749322009251,44.14233832,150.61,150.57,8.10010726]
[1749322012968,29.40255921,150.61,150.57,14.74140111]
[1749322013179,3.40255921,150.61,150.58,8.10010726]
[1749322013362,47.93082391,150.63,150.58,8.10010726]
[1749322013569,47.93082391,150.63,150.59,8.10010726]
[1749322013869,47.93082391,150.63,150.57,95.34129385]
[1749322013870,47.93082391,150.63,150.58,8.10010726]
[1749322014186,32.63887488,150.63,150.59,8.10010726]
[1749322014949,26.0,150.63,150.59,14.74062071]
[1749322015488,40.7389777,150.63,150.59,8.10010726]
[1749322015681,40.7389777,150.63,150.57,96.80010726]
[1749322015682,8.10010726,150.62,150.57,96.80010726]
[1749322015887,8.10010726,150.62,150.57,103.44139764]
[1749322016097,40.73889993,150.63,150.58,8.10010726]
[1749322016488,44.05439613,150.63,150.58,14.7409406]
[1749322018180,37.41560346,150.63,150.58,14.7409406]
[1749322018381,37.41560346,150.63,150.58,103.4409406]
[1749322020506,29.3154962,150.63,150.59,8.10010726]
[1749322020890,3.3154962,150.63,150.59,14.74059157]
[1749322021096,14.73784315,150.66,150.62,8.10010726]
[1749322021287,14.73722761,150.67,150.62,8.10010726]
[1749322021483,8.10010726,150.64,150.6,18.50010726]
[1749322021686,8.10010726,150.65,150.6,18.50010726]
[1749322021905,8.10010726,150.66,150.61,8.10010726]
[1749322022815,8.10010726,150.67,150.63,8.10010726]
[1749322023025,59.44139686,150.7,150.66,47.96010726]
[1749322023026,12.21652958,150.7,150.66,47.96010726]
[1749322023309,8.10010726,150.69,150.68,39.86]
[1749322023887,3.32059137,150.71,150.68,39.86]
[1749322024087,8.10010726,150.69,150.68,39.86]
[1749322025185,6.63525977,150.71,150.69,39.86]
[1749322025391,8.10010726,150.7,150.69,39.86]
[1749322026585,8.10010726,150.71,150.69,39.86]
[1749322026786,14.73580732,150.7,150.69,39.86]
[1749322027197,8.10010726,150.7,150.69,39.86]
[1749322027413,8.10010726,150.7,150.67,39.86]
[1749322028103,1.5851,150.74,150.67,47.96010726]
[1749322028314,8.10010726,150.71,150.67,47.96010726]
[1749322028516,8.10010726,150.71,150.67,39.86]
[1749322029190,14.73554685,150.71,150.67,39.86]
[1749322030305,32.63481953,150.72,150.67,54.59712736]
[1749322030612,8.10010726,150.71,150.67,54.59712736]
[1749322031187,8.10010726,150.7,150.67,39.86]
[1749322033309,8.10010726,150.71,150.67,54.59706151]
[1749322034106,8.10010726,150.71,150.67,47.96010726]
[1749322034107,14.73546245,150.71,150.67,47.96010726]
[1749322034295,8.10010726,150.7,150.67,39.86]
[1749322035612,14.73546245,150.71,150.67,47.96010726]
[1749322035934,26.0,150.74,150.69,39.86]
[1749322036091,26.0,150.74,150.71,39.86]
[1749322036600,40.73405583,150.74,150.71,39.86]
[1749322037000,15.29194903,150.75,150.71,39.86]
[1749322037316,14.73368322,150.75,150.71,39.86]
[1749322037499,8.10010726,150.74,150.71,39.86]
[1749322037810,11.46154433,150.74,150.71,39.86]
[1749322038712,18.0955042,150.74,150.71,39.86]
[1749322040634,9.99539694,150.74,150.72,39.86]
[1749322040923,26.0,150.73,150.72,39.86]
[1749322041504,26.0,150.73,150.69,39.86]
[1749322042018,8.10010726,150.71,150.69,39.86]
[1749322042215,8.10010726,150.72,150.69,39.86]
[1749322042406,14.73495341,150.72,150.69,39.86]
[1749322042622,14.73495341,150.72,150.7,39.86]
[1749322042802,43.74143707,150.74,150.7,39.86]
[1749322042990,8.10010726,150.75,150.7,39.86]
[1749322043189,8.10010726,150.75,150.72,39.86]
[1749322043389,8.10010726,150.74,150.72,39.86]
[1749322043796,26.0,150.76,150.72,39.86]
[1749322043996,14.73376578,150.75,150.72,39.86]
[1749322044221,14.73376578,150.75,150.71,39.86]
[1749322044409,8.10010726,150.74,150.71,39.86]
[1749322045322,8.10010726,150.73,150.71,39.86]
[1749322045524,8.10010726,150.74,150.71,39.86]
[1749322046702,19.87040599,150.77,150.71,39.86]
[1749322046703,3.28839978,150.77,150.73,47.96010726]
[1749322046904,3.28839978,150.77,150.73,39.86]
[1749322046905,14.73277452,150.77,150.73,39.86]
[1749322047122,8.10010726,150.77,150.73,39.86]
[1749322047331,6.63234608,150.78,150.73,47.96010726]
[1749322047520,8.10010726,150.77,150.73,47.96010726]
[1749322048026,32.63234608,150.78,150.72,39.86]
[1749322048331,8.10010726,150.76,150.72,39.86]
[1749322048528,8.10010726,150.76,150.72,47.96010726]
[1749322048835,8.10010726,150.76,150.72,54.59488251]
[1749322049026,8.10010726,150.77,150.72,54.59488251]
[1749322049624,8.10010726,150.77,150.72,14.73488251]
[1749322050232,3.24081277,150.78,150.73,8.10010726]
[1749322050528,8.10010726,150.78,150.73,8.10010726]
[1749322050943,29.27457187,150.8,150.76,8.10010726]
[1749322051148,37.27927984,150.84,150.76,8.10010726]
[1749322051434,8.10010726,150.8,150.75,10.38]
[1749322051603,8.10010726,150.8,150.75,18.48010726]
[1749322052022,8.10010726,150.8,150.76,8.10010726]
[1749322052410,8.10010726,150.8,150.76,14.73282385]
[1749322052910,6.630579,150.82,150.75,10.38]
[1749322052911,8.10010726,150.79,150.75,10.38]
[1749322053624,8.10010726,150.79,150.75,25.11351788]
[1749322054047,8.10010726,150.8,150.75,25.11351788]
[1749322054547,26.0,150.83,150.77,8.10010726]
[1749322054740,8.10010726,150.82,150.77,8.10010726]
[1749322055356,26.0,150.83,150.77,8.10010726]
[1749322055529,8.10010726,150.82,150.77,8.10010726]
[1749322055730,14.73054473,150.82,150.77,8.10010726]
[1749322056040,6.63043747,150.82,150.77,8.10010726]
[1749322056241,14.73054473,150.82,150.77,8.10010726]
[1749322057756,8.10010726,150.82,150.78,8.10010726]
[1749322058742,8.10010726,150.82,150.78,14.73212332]
[1749322058951,8.10010726,150.82,150.78,8.10010726]
[1749322059155,14.73057315,150.82,150.76,8.28905371]
[1749322059374,8.10010726,150.81,150.76,16.38916097]
[1749322060137,14.73097641,150.81,150.76,16.38916097]
[1749322060540,8.10010726,150.81,150.76,16.38916097]
[1749322061850,8.10010726,150.81,150.77,8.10010726]